[Event "Late-Titled-Tuesday-Blitz-February-13-2024"]
[Site "Chess.com"]
[Date "2024.02.13"]
[Round "2"]
[White "Cosi43"]
[Black "ilya2700"]
[Result "1-0"]
[WhiteElo "2612"]
[BlackElo "2340"]
[TimeControl "180+1"]
[EndTime "14:12:31 PST"]
[Termination "Cosi43 won by resignation"]

1. d4 {[%clk 0:03:00.9]} 1... Nf6 {[%clk 0:02:59.5]} 2. Nf3 {[%clk 0:03:01.4]}
2... g6 {[%clk 0:02:59.8]} 3. c4 {[%clk 0:03:02]} 3... Bg7 {[%clk 0:03:00.4]} 4.
Nc3 {[%clk 0:03:02.6]} 4... O-O {[%clk 0:03:01.1]} 5. Bg5 {[%clk 0:03:02.7]}
5... d6 {[%clk 0:03:02]} 6. e3 {[%clk 0:03:02]} 6... Nbd7 {[%clk 0:03:01.5]} 7.
Qc2 {[%clk 0:02:59]} 7... h6 {[%clk 0:03:01.4]} 8. Bh4 {[%clk 0:02:58.7]} 8...
e5 {[%clk 0:03:01.9]} 9. dxe5 {[%clk 0:02:58.2]} 9... Nxe5 {[%clk 0:02:59.5]}
10. Nxe5 {[%clk 0:02:57.3]} 10... dxe5 {[%clk 0:03:00.4]} 11. Rd1 {[%clk
0:02:51.5]} 11... Qe7 {[%clk 0:02:51.9]} 12. Nd5 {[%clk 0:02:51.1]} 12... Qe6
{[%clk 0:01:57.8]} 13. Nxc7 {[%clk 0:02:44.1]} 13... Qb6 {[%clk 0:01:56.6]} 14.
Nxa8 {[%clk 0:02:42.5]} 14... Bf5 {[%clk 0:01:55.2]} 15. Nxb6 {[%clk 0:02:39.7]}
15... Bxc2 {[%clk 0:01:52.7]} 16. Rd2 {[%clk 0:02:38.6]} 16... Bf5 {[%clk
0:01:47.6]} 17. Bxf6 {[%clk 0:02:39]} 1-0

[Event "Late-Titled-Tuesday-Blitz-February-13-2024"]
[Site "Chess.com"]
[Date "2024.02.13"]
[Round "2"]
[White "joksijoksi"]
[Black "TheMagician"]
[Result "0-1"]
[WhiteElo "2525"]
[BlackElo "2212"]
[TimeControl "180+1"]
[EndTime "14:13:14 PST"]
[Termination "TheMagician won by checkmate"]

1. d4 {[%clk 0:03:00.9]} 1... Nf6 {[%clk 0:02:53.8]} 2. c4 {[%clk 0:03:00.8]}
2... e6 {[%clk 0:02:50.7]} 3. Nf3 {[%clk 0:02:58.7]} 3... Be7 {[%clk 0:02:50.5]}
4. Nc3 {[%clk 0:02:57.9]} 4... d5 {[%clk 0:02:50.4]} 5. Bf4 {[%clk 0:02:55.9]}
5... c6 {[%clk 0:02:49.7]} 6. e3 {[%clk 0:02:55.2]} 6... O-O {[%clk 0:02:49.6]}
7. Bd3 {[%clk 0:02:54.7]} 7... dxc4 {[%clk 0:02:49.4]} 8. Bxc4 {[%clk
0:02:55.6]} 8... Nd5 {[%clk 0:02:49.6]} 9. Bg3 {[%clk 0:02:54]} 9... Nxc3 {[%clk
0:02:48.1]} 10. bxc3 {[%clk 0:02:53.9]} 10... Nd7 {[%clk 0:02:48.2]} 11. O-O
{[%clk 0:02:51.4]} 11... a6 {[%clk 0:02:41.8]} 12. Bd3 {[%clk 0:02:50.5]} 12...
b5 {[%clk 0:02:35.5]} 13. a4 {[%clk 0:02:49.8]} 13... Bb7 {[%clk 0:02:31.1]} 14.
e4 {[%clk 0:02:47.8]} 14... b4 {[%clk 0:02:24.6]} 15. cxb4 {[%clk 0:02:45.6]}
15... Bxb4 {[%clk 0:02:23.8]} 16. e5 {[%clk 0:02:29.8]} 16... a5 {[%clk
0:02:22]} 17. Bh4 {[%clk 0:02:29.1]} 17... f6 {[%clk 0:02:08.7]} 18. exf6 {[%clk
0:02:27.3]} 18... Nxf6 {[%clk 0:02:08.7]} 19. Ng5 {[%clk 0:02:22.8]} 19... Qd5
{[%clk 0:01:58.3]} 20. Qc2 {[%clk 0:02:13]} 20... c5 {[%clk 0:01:52.8]} 21.
Bxh7+ {[%clk 0:02:02.5]} 21... Kh8 {[%clk 0:01:53]} 22. Bg6 {[%clk 0:02:00.9]}
22... Qxg2# {[%clk 0:01:51.3]} 0-1

[Event "Late-Titled-Tuesday-Blitz-February-13-2024"]
[Site "Chess.com"]
[Date "2024.02.13"]
[Round "2"]
[White "N_Mullodzhanov"]
[Black "gunslinger222"]
[Result "1-0"]
[WhiteElo "2510"]
[BlackElo "2260"]
[TimeControl "180+1"]
[EndTime "14:13:25 PST"]
[Termination "N_Mullodzhanov won by resignation"]

1. e4 {[%clk 0:03:00.9]} 1... d5 {[%clk 0:03:00.4]} 2. Nc3 {[%clk 0:02:59.6]}
2... d4 {[%clk 0:02:59.6]} 3. Nce2 {[%clk 0:02:59.9]} 3... c5 {[%clk 0:02:59.4]}
4. d3 {[%clk 0:03:00.2]} 4... Nc6 {[%clk 0:02:59.8]} 5. f4 {[%clk 0:03:00.5]}
5... Nf6 {[%clk 0:02:54.8]} 6. Nf3 {[%clk 0:03:00.6]} 6... Bg4 {[%clk
0:02:52.4]} 7. Ng3 {[%clk 0:02:55.2]} 7... h5 {[%clk 0:02:51.2]} 8. h3 {[%clk
0:02:54.3]} 8... Bxf3 {[%clk 0:02:45.4]} 9. Qxf3 {[%clk 0:02:55.2]} 9... h4
{[%clk 0:02:45.9]} 10. Ne2 {[%clk 0:02:50]} 10... e6 {[%clk 0:02:37.9]} 11. c4
{[%clk 0:02:45.1]} 11... Nb4 {[%clk 0:02:29.8]} 12. Rb1 {[%clk 0:02:30.8]} 12...
Nxa2 {[%clk 0:02:14.9]} 13. e5 {[%clk 0:02:30.1]} 13... Nd7 {[%clk 0:02:04.6]}
14. Qxb7 {[%clk 0:02:28.2]} 14... Nxc1 {[%clk 0:01:52.3]} 15. Nxc1 {[%clk
0:02:21.9]} 15... Qa5+ {[%clk 0:01:52.8]} 16. b4 {[%clk 0:02:16.8]} 16... Rb8
{[%clk 0:01:53.7]} 17. bxa5 {[%clk 0:02:16.1]} 17... Rxb7 {[%clk 0:01:49.5]} 18.
Rxb7 {[%clk 0:02:15.6]} 18... Be7 {[%clk 0:01:50.2]} 19. Be2 {[%clk 0:02:14.4]}
19... Kd8 {[%clk 0:01:50.4]} 20. O-O {[%clk 0:02:13.7]} 20... Kc8 {[%clk
0:01:50.9]} 21. a6 {[%clk 0:02:13.4]} 21... Rh6 {[%clk 0:01:45.9]} 22. Na2
{[%clk 0:02:12.5]} 22... f6 {[%clk 0:01:41]} 23. Rfb1 {[%clk 0:02:11.7]} 23...
fxe5 {[%clk 0:01:40.5]} 24. Rxa7 {[%clk 0:02:11.7]} 24... Rg6 {[%clk 0:01:36.3]}
25. Rbb7 {[%clk 0:02:11.1]} 1-0

[Event "Late-Titled-Tuesday-Blitz-February-13-2024"]
[Site "Chess.com"]
[Date "2024.02.13"]
[Round "2"]
[White "jcibarra"]
[Black "HaryKane"]
[Result "1-0"]
[WhiteElo "2940"]
[BlackElo "2595"]
[TimeControl "180+1"]
[EndTime "14:13:43 PST"]
[Termination "jcibarra won by resignation"]

1. e4 {[%clk 0:02:58.7]} 1... e6 {[%clk 0:02:59.7]} 2. d4 {[%clk 0:02:58.4]}
2... d5 {[%clk 0:03:00.3]} 3. Nc3 {[%clk 0:02:58.3]} 3... dxe4 {[%clk
0:03:00.1]} 4. Nxe4 {[%clk 0:02:58.3]} 4... Nd7 {[%clk 0:03:00.2]} 5. Bd3 {[%clk
0:02:58.4]} 5... Ngf6 {[%clk 0:03:00.5]} 6. Qe2 {[%clk 0:02:59]} 6... c5 {[%clk
0:02:59.1]} 7. Nxf6+ {[%clk 0:02:58.4]} 7... Nxf6 {[%clk 0:02:57.1]} 8. dxc5
{[%clk 0:02:59]} 8... Bxc5 {[%clk 0:02:53.5]} 9. Bg5 {[%clk 0:02:59.5]} 9...
Qa5+ {[%clk 0:02:49]} 10. Bd2 {[%clk 0:02:58.6]} 10... Qb6 {[%clk 0:02:44.4]}
11. O-O-O {[%clk 0:02:58.6]} 11... O-O {[%clk 0:02:38.6]} 12. Nf3 {[%clk
0:02:57.7]} 12... Bd7 {[%clk 0:02:33.9]} 13. Ne5 {[%clk 0:02:57]} 13... Ba4
{[%clk 0:02:22.1]} 14. Bg5 {[%clk 0:02:50.5]} 14... Nd5 {[%clk 0:02:02.2]} 15.
Qe4 {[%clk 0:02:49.3]} 15... f5 {[%clk 0:01:45.6]} 16. Qxa4 {[%clk 0:02:48.1]}
16... Bxf2 {[%clk 0:01:45]} 17. Nd7 {[%clk 0:02:43.4]} 17... Be3+ {[%clk
0:01:42.7]} 18. Bxe3 {[%clk 0:02:36.7]} 18... Qxe3+ {[%clk 0:01:42.3]} 19. Kb1
{[%clk 0:02:35.4]} 19... Rfd8 {[%clk 0:01:39.4]} 20. Rhe1 {[%clk 0:02:34.5]}
20... Qf2 {[%clk 0:01:37.2]} 21. Rxe6 {[%clk 0:02:28.8]} 21... Nf4 {[%clk
0:01:28.6]} 22. Rf1 {[%clk 0:02:16.9]} 22... Qxf1+ {[%clk 0:01:12.7]} 23. Bxf1
{[%clk 0:02:16.4]} 23... Nxe6 {[%clk 0:01:13.1]} 24. Bc4 {[%clk 0:02:16.8]}
24... Kf7 {[%clk 0:01:11.3]} 25. Qb3 {[%clk 0:02:16.7]} 1-0

[Event "Late-Titled-Tuesday-Blitz-February-13-2024"]
[Site "Chess.com"]
[Date "2024.02.13"]
[Round "2"]
[White "Supelyel"]
[Black "zano2023"]
[Result "1-0"]
[WhiteElo "2473"]
[BlackElo "2138"]
[TimeControl "180+1"]
[EndTime "14:13:51 PST"]
[Termination "Supelyel won by checkmate"]

1. c4 {[%clk 0:03:00.9]} 1... d6 {[%clk 0:02:59.1]} 2. g3 {[%clk 0:02:58.6]}
2... Nf6 {[%clk 0:02:59.7]} 3. Bg2 {[%clk 0:02:58.2]} 3... Nbd7 {[%clk
0:03:00.3]} 4. Nc3 {[%clk 0:02:57.2]} 4... e5 {[%clk 0:03:00.9]} 5. d3 {[%clk
0:02:56.7]} 5... Be7 {[%clk 0:03:01.5]} 6. Bg5 {[%clk 0:02:56.6]} 6... O-O
{[%clk 0:03:02.3]} 7. Bxf6 {[%clk 0:02:56.9]} 7... Nxf6 {[%clk 0:03:01.6]} 8.
Nf3 {[%clk 0:02:57.6]} 8... c6 {[%clk 0:02:59.8]} 9. O-O {[%clk 0:02:57.8]} 9...
Bd7 {[%clk 0:02:57.8]} 10. Rb1 {[%clk 0:02:57.5]} 10... Qc8 {[%clk 0:02:57.6]}
11. Re1 {[%clk 0:02:57.6]} 11... h6 {[%clk 0:02:57.5]} 12. b4 {[%clk 0:02:56.9]}
12... Bh3 {[%clk 0:02:56.9]} 13. Bh1 {[%clk 0:02:56.8]} 13... Ng4 {[%clk
0:02:56.8]} 14. b5 {[%clk 0:02:44.6]} 14... h5 {[%clk 0:02:54.9]} 15. bxc6
{[%clk 0:02:43.7]} 15... bxc6 {[%clk 0:02:53.8]} 16. Qb3 {[%clk 0:02:36.1]}
16... h4 {[%clk 0:02:34.7]} 17. Qb7 {[%clk 0:02:34]} 17... hxg3 {[%clk
0:02:28.3]} 18. hxg3 {[%clk 0:02:29.2]} 18... Qe6 {[%clk 0:02:11.2]} 19. Qxc6
{[%clk 0:02:25]} 19... Rac8 {[%clk 0:02:08.6]} 20. Qd5 {[%clk 0:02:20.3]} 20...
Qh6 {[%clk 0:02:07.9]} 21. Rb7 {[%clk 0:02:16.6]} 21... Rfe8 {[%clk 0:02:02.1]}
22. Ne4 {[%clk 0:01:59.7]} 22... Kf8 {[%clk 0:01:56.2]} 23. Reb1 {[%clk
0:01:57.2]} 23... f5 {[%clk 0:01:48.3]} 24. Neg5 {[%clk 0:01:52.5]} 24... Qf6
{[%clk 0:01:27.5]} 25. Nh7# {[%clk 0:01:46.5]} 1-0

[Event "Late-Titled-Tuesday-Blitz-February-13-2024"]
[Site "Chess.com"]
[Date "2024.02.13"]
[Round "2"]
[White "ninguno46"]
[Black "Ready4abattle"]
[Result "1-0"]
[WhiteElo "2504"]
[BlackElo "2245"]
[TimeControl "180+1"]
[EndTime "14:13:57 PST"]
[Termination "ninguno46 won by checkmate"]

1. e4 {[%clk 0:02:59.4]} 1... c5 {[%clk 0:02:59.4]} 2. Nc3 {[%clk 0:02:58.4]}
2... Nc6 {[%clk 0:02:59.9]} 3. f4 {[%clk 0:02:58.6]} 3... e6 {[%clk 0:02:59.9]}
4. Nf3 {[%clk 0:02:58.7]} 4... Nge7 {[%clk 0:03:00.2]} 5. d4 {[%clk 0:02:55.8]}
5... Nxd4 {[%clk 0:02:56.7]} 6. Nxd4 {[%clk 0:02:55.5]} 6... cxd4 {[%clk
0:02:57.6]} 7. Qxd4 {[%clk 0:02:55.5]} 7... Nc6 {[%clk 0:02:57.5]} 8. Qf2 {[%clk
0:02:55.5]} 8... d5 {[%clk 0:02:48.6]} 9. Bd3 {[%clk 0:02:49.2]} 9... Be7 {[%clk
0:02:45.1]} 10. Bd2 {[%clk 0:02:48]} 10... O-O {[%clk 0:02:43.7]} 11. O-O-O
{[%clk 0:02:46.9]} 11... d4 {[%clk 0:02:30.8]} 12. Ne2 {[%clk 0:02:46.4]} 12...
Qb6 {[%clk 0:02:28.4]} 13. e5 {[%clk 0:02:30.2]} 13... f6 {[%clk 0:02:18.6]} 14.
exf6 {[%clk 0:02:27]} 14... Bxf6 {[%clk 0:02:17.9]} 15. Ng3 {[%clk 0:02:24.6]}
15... Nb4 {[%clk 0:02:05.1]} 16. Bxb4 {[%clk 0:02:23.3]} 16... Qxb4 {[%clk
0:02:05.4]} 17. Qe2 {[%clk 0:02:21.8]} 17... Qa5 {[%clk 0:01:58.4]} 18. Kb1
{[%clk 0:02:21]} 18... Bd7 {[%clk 0:01:47.6]} 19. Ne4 {[%clk 0:02:17]} 19...
Rac8 {[%clk 0:01:39]} 20. h4 {[%clk 0:02:14.3]} 20... Bc6 {[%clk 0:01:26.9]} 21.
Ng5 {[%clk 0:02:13.5]} 21... h6 {[%clk 0:01:11.4]} 22. Qxe6+ {[%clk 0:02:07]}
22... Kh8 {[%clk 0:01:10.7]} 23. Nf7+ {[%clk 0:02:06.4]} 23... Kg8 {[%clk
0:01:08.5]} 24. Nxh6+ {[%clk 0:02:05.2]} 24... Kh8 {[%clk 0:01:08.5]} 25. Qg8+
{[%clk 0:02:04.8]} 25... Rxg8 {[%clk 0:01:08.1]} 26. Nf7# {[%clk 0:02:05]} 1-0

[Event "Late-Titled-Tuesday-Blitz-February-13-2024"]
[Site "Chess.com"]
[Date "2024.02.13"]
[Round "2"]
[White "Konavets"]
[Black "Sanyura"]
[Result "1-0"]
[WhiteElo "3035"]
[BlackElo "2659"]
[TimeControl "180+1"]
[EndTime "14:13:59 PST"]
[Termination "Konavets won by resignation"]

1. d4 {[%clk 0:03:00.9]} 1... Nf6 {[%clk 0:02:42.2]} 2. c4 {[%clk 0:03:00.8]}
2... g6 {[%clk 0:02:42.4]} 3. Nc3 {[%clk 0:03:00.4]} 3... Bg7 {[%clk 0:02:43.1]}
4. e4 {[%clk 0:03:00.2]} 4... d6 {[%clk 0:02:43.8]} 5. Be2 {[%clk 0:03:00.9]}
5... O-O {[%clk 0:02:44.3]} 6. Bg5 {[%clk 0:03:00.9]} 6... c6 {[%clk 0:02:39.8]}
7. h4 {[%clk 0:03:00.9]} 7... a6 {[%clk 0:02:37.1]} 8. a4 {[%clk 0:02:58.4]}
8... Nbd7 {[%clk 0:02:35.8]} 9. h5 {[%clk 0:02:58.6]} 9... c5 {[%clk 0:02:35.3]}
10. d5 {[%clk 0:02:58]} 10... Rb8 {[%clk 0:02:32.9]} 11. hxg6 {[%clk 0:02:53.4]}
11... hxg6 {[%clk 0:02:31.2]} 12. Qc1 {[%clk 0:02:50.3]} 12... e6 {[%clk
0:02:09.3]} 13. Bh6 {[%clk 0:02:38.6]} 13... Bh8 {[%clk 0:01:49.6]} 14. dxe6
{[%clk 0:02:38.7]} 14... fxe6 {[%clk 0:01:48.9]} 15. Qg5 {[%clk 0:02:39.1]}
15... Bg7 {[%clk 0:01:31]} 16. Qxg6 {[%clk 0:02:36.8]} 16... Qe7 {[%clk
0:01:31.5]} 17. f4 {[%clk 0:02:30.5]} 17... b5 {[%clk 0:01:21.5]} 18. axb5
{[%clk 0:02:28.9]} 18... axb5 {[%clk 0:01:21.7]} 19. Nxb5 {[%clk 0:02:22.1]}
19... d5 {[%clk 0:01:18.3]} 20. e5 {[%clk 0:02:20.2]} 20... Ne4 {[%clk
0:01:18.3]} 21. Nf3 {[%clk 0:02:18.3]} 21... Rf5 {[%clk 0:00:54.6]} 22. g4
{[%clk 0:02:15]} 22... Nf8 {[%clk 0:00:51]} 23. Qxg7+ {[%clk 0:02:15.2]} 1-0

[Event "Late-Titled-Tuesday-Blitz-February-13-2024"]
[Site "Chess.com"]
[Date "2024.02.13"]
[Round "2"]
[White "bocah_sakit"]
[Black "Qingdom"]
[Result "1-0"]
[WhiteElo "2465"]
[BlackElo "2163"]
[TimeControl "180+1"]
[EndTime "14:14:03 PST"]
[Termination "bocah_sakit won by resignation"]

1. e4 {[%clk 0:02:20.6]} 1... c5 {[%clk 0:02:58.9]} 2. Nf3 {[%clk 0:02:20.6]}
2... Nc6 {[%clk 0:02:58.9]} 3. Bb5 {[%clk 0:02:20.5]} 3... Nf6 {[%clk
0:02:58.4]} 4. e5 {[%clk 0:02:19.7]} 4... Nd5 {[%clk 0:02:58.2]} 5. O-O {[%clk
0:02:18.9]} 5... g6 {[%clk 0:02:57.7]} 6. Nc3 {[%clk 0:02:18.6]} 6... Nc7 {[%clk
0:02:57.4]} 7. Bxc6 {[%clk 0:02:18.2]} 7... dxc6 {[%clk 0:02:57.4]} 8. Re1
{[%clk 0:02:17.1]} 8... Bg4 {[%clk 0:02:56.9]} 9. h3 {[%clk 0:02:17.2]} 9...
Bxf3 {[%clk 0:02:56.6]} 10. Qxf3 {[%clk 0:02:18.1]} 10... Bg7 {[%clk 0:02:56.6]}
11. Ne4 {[%clk 0:02:18.8]} 11... Ne6 {[%clk 0:02:56.3]} 12. d3 {[%clk
0:02:14.4]} 12... O-O {[%clk 0:02:55.7]} 13. Qg3 {[%clk 0:02:10.7]} 13... Nd4
{[%clk 0:02:45.3]} 14. Qh4 {[%clk 0:01:42.7]} 14... Nxc2 {[%clk 0:02:34.8]} 15.
Bh6 {[%clk 0:01:41.8]} 15... f6 {[%clk 0:02:27.4]} 16. exf6 {[%clk 0:01:36.4]}
16... exf6 {[%clk 0:02:27.5]} 17. Nxc5 {[%clk 0:01:32]} 17... Nxe1 {[%clk
0:02:24.6]} 18. Bxg7 {[%clk 0:01:30.6]} 18... Nc2 {[%clk 0:02:06.7]} 19. Bxf8
{[%clk 0:01:10.7]} 19... Qxf8 {[%clk 0:02:06.4]} 20. Qc4+ {[%clk 0:01:08.7]}
20... Qf7 {[%clk 0:02:05.8]} 21. Qxc2 {[%clk 0:01:09.6]} 21... Rd8 {[%clk
0:02:03.8]} 22. Re1 {[%clk 0:01:08.1]} 22... b6 {[%clk 0:02:03.8]} 23. Ne6
{[%clk 0:01:06.3]} 23... Re8 {[%clk 0:02:03.6]} 24. Qxc6 {[%clk 0:01:05.9]} 1-0

[Event "Late-Titled-Tuesday-Blitz-February-13-2024"]
[Site "Chess.com"]
[Date "2024.02.13"]
[Round "2"]
[White "FabianoCaruana"]
[Black "Malev212"]
[Result "1-0"]
[WhiteElo "3058"]
[BlackElo "2671"]
[TimeControl "180+1"]
[EndTime "14:14:04 PST"]
[Termination "FabianoCaruana won by resignation"]

1. d4 {[%clk 0:03:00.9]} 1... g6 {[%clk 0:02:55.9]} 2. e4 {[%clk 0:03:00.7]}
2... Bg7 {[%clk 0:02:55]} 3. Nc3 {[%clk 0:03:01.3]} 3... c5 {[%clk 0:02:54.2]}
4. d5 {[%clk 0:02:59.3]} 4... d6 {[%clk 0:02:52.8]} 5. Bb5+ {[%clk 0:02:58.8]}
5... Bd7 {[%clk 0:02:51.6]} 6. Be2 {[%clk 0:02:58.4]} 6... Nf6 {[%clk
0:02:51.5]} 7. a4 {[%clk 0:02:56.7]} 7... O-O {[%clk 0:02:50.9]} 8. h3 {[%clk
0:02:56.8]} 8... e6 {[%clk 0:02:50.6]} 9. dxe6 {[%clk 0:02:53.8]} 9... Bxe6
{[%clk 0:02:49.9]} 10. Nf3 {[%clk 0:02:54.1]} 10... Nc6 {[%clk 0:02:49.4]} 11.
O-O {[%clk 0:02:53.9]} 11... a6 {[%clk 0:02:47.3]} 12. Bf4 {[%clk 0:02:44.5]}
12... Qb6 {[%clk 0:02:46.2]} 13. Rb1 {[%clk 0:02:41.5]} 13... Rad8 {[%clk
0:02:45]} 14. Ng5 {[%clk 0:02:38.3]} 14... d5 {[%clk 0:02:31]} 15. Nxe6 {[%clk
0:02:36.5]} 15... fxe6 {[%clk 0:02:30.5]} 16. exd5 {[%clk 0:02:35.8]} 16... exd5
{[%clk 0:02:29]} 17. Bg5 {[%clk 0:02:34.3]} 17... Nd4 {[%clk 0:02:17.4]} 18. Bd3
{[%clk 0:02:23.7]} 18... Kh8 {[%clk 0:01:51.2]} 19. b4 {[%clk 0:02:05.7]} 19...
cxb4 {[%clk 0:01:36.1]} 20. Be3 {[%clk 0:02:04.4]} 20... Ne4 {[%clk 0:01:34.3]}
21. Nxd5 {[%clk 0:01:55.8]} 21... Rxd5 {[%clk 0:01:30.8]} 22. Bxe4 {[%clk
0:01:55.8]} 22... Rd6 {[%clk 0:01:22.4]} 23. c3 {[%clk 0:01:53.2]} 23... Nf3+
{[%clk 0:01:18.7]} 24. Qxf3 {[%clk 0:01:51.5]} 1-0

[Event "Late-Titled-Tuesday-Blitz-February-13-2024"]
[Site "Chess.com"]
[Date "2024.02.13"]
[Round "2"]
[White "NitaLucian"]
[Black "GothamChess"]
[Result "0-1"]
[WhiteElo "2353"]
[BlackElo "2721"]
[TimeControl "180+1"]
[EndTime "14:14:09 PST"]
[Termination "GothamChess won by resignation"]

1. e4 {[%clk 0:03:00.9]} 1... d5 {[%clk 0:02:59.6]} 2. d3 {[%clk 0:03:00.4]}
2... e5 {[%clk 0:02:56.5]} 3. Nf3 {[%clk 0:02:58.6]} 3... Nc6 {[%clk 0:02:56.3]}
4. Nbd2 {[%clk 0:02:57.9]} 4... f6 {[%clk 0:02:56]} 5. Be2 {[%clk 0:02:57.5]}
5... Be6 {[%clk 0:02:55.3]} 6. O-O {[%clk 0:02:58]} 6... Bc5 {[%clk 0:02:53]} 7.
c3 {[%clk 0:02:58.1]} 7... a5 {[%clk 0:02:51.6]} 8. a4 {[%clk 0:02:57.4]} 8...
Nge7 {[%clk 0:02:49.9]} 9. Nb3 {[%clk 0:02:56.6]} 9... Bb6 {[%clk 0:02:49.8]}
10. Nfd2 {[%clk 0:02:56.1]} 10... Ng6 {[%clk 0:02:43]} 11. Bg4 {[%clk
0:02:52.4]} 11... Qd7 {[%clk 0:02:40.5]} 12. exd5 {[%clk 0:02:48.7]} 12... Bxg4
{[%clk 0:02:20.4]} 13. dxc6 {[%clk 0:02:48.2]} 13... bxc6 {[%clk 0:02:21]} 14.
Qc2 {[%clk 0:02:41.7]} 14... Be2 {[%clk 0:02:19.1]} 15. d4 {[%clk 0:02:29.5]}
15... Bxf1 {[%clk 0:02:15.2]} 16. Nxf1 {[%clk 0:02:28.1]} 16... O-O {[%clk
0:02:13.3]} 17. Be3 {[%clk 0:02:27.5]} 17... Rad8 {[%clk 0:02:09.2]} 18. g3
{[%clk 0:02:22.8]} 18... f5 {[%clk 0:02:05.9]} 19. Bg5 {[%clk 0:02:12.3]} 19...
Rde8 {[%clk 0:02:03.9]} 20. Rd1 {[%clk 0:01:56]} 20... Qf7 {[%clk 0:02:03.3]}
21. Nc5 {[%clk 0:01:51.4]} 21... f4 {[%clk 0:01:54.7]} 22. Ne4 {[%clk
0:01:26.6]} 22... h6 {[%clk 0:01:52.3]} 23. Bh4 {[%clk 0:01:26.4]} 23... Nxh4
{[%clk 0:01:48.4]} 24. gxh4 {[%clk 0:01:26.5]} 24... exd4 {[%clk 0:01:46.7]} 25.
cxd4 {[%clk 0:01:22.7]} 25... Qg6+ {[%clk 0:01:46.3]} 0-1

[Event "Late-Titled-Tuesday-Blitz-February-13-2024"]
[Site "Chess.com"]
[Date "2024.02.13"]
[Round "2"]
[White "VitorBronson"]
[Black "waltereador"]
[Result "1-0"]
[WhiteElo "2508"]
[BlackElo "2251"]
[TimeControl "180+1"]
[EndTime "14:14:12 PST"]
[Termination "VitorBronson won by resignation"]

1. d4 {[%clk 0:03:00.9]} 1... e5 {[%clk 0:02:58.5]} 2. dxe5 {[%clk 0:03:00.2]}
2... Nc6 {[%clk 0:02:58.4]} 3. Nf3 {[%clk 0:03:00.3]} 3... Qe7 {[%clk
0:02:58.8]} 4. Nc3 {[%clk 0:02:59.5]} 4... Nxe5 {[%clk 0:02:58.6]} 5. Nd5 {[%clk
0:02:59.7]} 5... Nxf3+ {[%clk 0:02:55.8]} 6. gxf3 {[%clk 0:03:00.6]} 6... Qd8
{[%clk 0:02:56]} 7. e4 {[%clk 0:02:54.7]} 7... c6 {[%clk 0:02:54.7]} 8. Nc3
{[%clk 0:02:52.6]} 8... Be7 {[%clk 0:02:44.3]} 9. Bf4 {[%clk 0:02:52]} 9... d6
{[%clk 0:02:43]} 10. Qd2 {[%clk 0:02:51.1]} 10... Nf6 {[%clk 0:02:42.8]} 11.
O-O-O {[%clk 0:02:51]} 11... Be6 {[%clk 0:02:31.3]} 12. Qe1 {[%clk 0:02:34.5]}
12... Qa5 {[%clk 0:02:27.5]} 13. Bxd6 {[%clk 0:02:07.3]} 13... Bxd6 {[%clk
0:02:24.7]} 14. Rxd6 {[%clk 0:02:08.2]} 14... Bxa2 {[%clk 0:02:22.7]} 15. e5
{[%clk 0:01:30.4]} 15... Nd5 {[%clk 0:02:21]} 16. e6 {[%clk 0:01:28.2]} 16...
O-O {[%clk 0:02:16.1]} 17. Bh3 {[%clk 0:01:21]} 17... Nxc3 {[%clk 0:02:13.7]}
18. Qxc3 {[%clk 0:01:17.1]} 18... Bxe6 {[%clk 0:02:10]} 19. Qxa5 {[%clk
0:01:15.9]} 19... Bxh3 {[%clk 0:02:09.8]} 20. Rhd1 {[%clk 0:01:10.5]} 20... b6
{[%clk 0:02:09]} 21. Qh5 {[%clk 0:01:09]} 21... Be6 {[%clk 0:02:07]} 22. Qh4
{[%clk 0:01:06.6]} 22... g6 {[%clk 0:02:07]} 23. Rd8 {[%clk 0:01:05.7]} 23... c5
{[%clk 0:02:05.2]} 24. Rxa8 {[%clk 0:01:04.9]} 24... Rxa8 {[%clk 0:02:05.1]} 25.
Rd8+ {[%clk 0:01:05.8]} 25... Rxd8 {[%clk 0:02:04.8]} 26. Qxd8+ {[%clk
0:01:06.7]} 1-0

[Event "Late-Titled-Tuesday-Blitz-February-13-2024"]
[Site "Chess.com"]
[Date "2024.02.13"]
[Round "2"]
[White "egnfanclub"]
[Black "arenal72"]
[Result "0-1"]
[WhiteElo "2339"]
[BlackElo "2578"]
[TimeControl "180+1"]
[EndTime "14:14:14 PST"]
[Termination "arenal72 won by resignation"]

1. e4 {[%clk 0:03:00.9]} 1... Nc6 {[%clk 0:02:59]} 2. d4 {[%clk 0:03:00.4]} 2...
d5 {[%clk 0:02:58.6]} 3. Nc3 {[%clk 0:02:59.8]} 3... e6 {[%clk 0:02:45.4]} 4.
Nf3 {[%clk 0:02:58.8]} 4... Nf6 {[%clk 0:02:45.1]} 5. e5 {[%clk 0:02:57.8]} 5...
Nd7 {[%clk 0:02:45.2]} 6. Bb5 {[%clk 0:02:48.3]} 6... f6 {[%clk 0:02:43.1]} 7.
Bf4 {[%clk 0:02:38.2]} 7... fxe5 {[%clk 0:02:34.7]} 8. Nxe5 {[%clk 0:02:37.8]}
8... Ncxe5 {[%clk 0:02:28.1]} 9. Bxe5 {[%clk 0:02:36]} 9... c6 {[%clk
0:02:27.9]} 10. Bd3 {[%clk 0:02:28.4]} 10... Nxe5 {[%clk 0:02:26.8]} 11. dxe5
{[%clk 0:02:28]} 11... Qg5 {[%clk 0:02:19.5]} 12. O-O {[%clk 0:02:20.2]} 12...
Qxe5 {[%clk 0:02:18.8]} 13. Re1 {[%clk 0:02:18.5]} 13... Qf6 {[%clk 0:02:17]}
14. Qh5+ {[%clk 0:01:56.4]} 14... g6 {[%clk 0:02:16.5]} 15. Qe2 {[%clk 0:01:47]}
15... Bd7 {[%clk 0:02:13.6]} 16. a4 {[%clk 0:01:34.6]} 16... Bd6 {[%clk
0:02:10.5]} 17. g3 {[%clk 0:01:10.7]} 17... O-O-O {[%clk 0:02:06.2]} 18. a5
{[%clk 0:01:10]} 18... h5 {[%clk 0:02:05]} 19. Qe3 {[%clk 0:01:09.5]} 19... d4
{[%clk 0:01:56.4]} 20. Ne4 {[%clk 0:01:03.3]} 20... dxe3 {[%clk 0:01:56.1]} 21.
Nxf6 {[%clk 0:01:03.3]} 21... exf2+ {[%clk 0:01:56.1]} 22. Kxf2 {[%clk
0:01:04.2]} 22... Rhf8 {[%clk 0:01:56.4]} 0-1